{"text_format":"1","workbook":"xlsx","n_sheets":3,"sheets":["Identif","SV12_01","SV12a_01"],"not_rendered":{"charts":0,"images":2,"macros":1,"external_links":0,"defined_names":5,"comments":0,"pivot_tables":0},"unopened":[],"bounds":{"document_bytes":16777216,"sheet_cells":100000,"rows_first":2000,"rows_last":500,"rows_between":2000,"halvings":0,"cell_chars":16384,"cell_head_chars":4096},"cells_cut":0,"cells_raw":0,"read":"whole","date_system":"1900"}

{"sheet":"Identif","index":0,"n_rows":49,"n_cols":53,"rows_kept":49,"cut":false,"hidden":false,"merged":[[20,10,20,28],[20,32,20,52],[21,10,21,28],[21,32,21,52],[38,1,38,52],[32,1,32,52],[33,1,33,52],[20,1,20,6],[26,8,26,13],[22,48,22,52],[23,32,23,46],[23,48,23,52],[24,32,24,52],[25,32,25,52],[26,32,26,52],[31,1,31,52],[39,1,39,52],[34,1,34,52],[35,1,35,52],[36,1,36,52],[37,1,37,52],[19,10,19,28],[13,1,13,8],[15,1,15,8],[17,1,17,8],[13,9,13,52],[15,9,15,44],[15,45,15,47],[15,48,15,52],[19,32,19,52],[17,9,17,52],[11,1,11,8],[0,32,0,50],[1,32,2,35],[1,36,1,37],[1,38,1,46],[1,47,2,50],[2,36,2,37],[2,38,2,46],[5,32,5,52],[3,32,3,35],[3,36,3,37],[3,38,3,46],[3,47,3,50],[11,9,11,52],[9,16,9,32],[22,32,22,46],[28,0,28,52],[29,0,29,52],[30,0,30,52],[26,0,26,7]]}
[null,null,null,null,null,null,null,null,null,null,null,null,null,null,null,null,null,null,null,null,null,null,null,null,null,null,null,null,null,null,null,null,"Škol (MŠVVŠ SR)  12 - 01",null,null,null,null,null,null,null,null,null,null,null,null,null,null,null,null,null,null,null,"AG"]
[null,null,null,null,null,null,null,null,null,null,null,null,null,null,null,null,null,null,null,null,null,null,null,null,null,null,null,null,null,null,null,null,"Rok",null,null,null,"Mes",null,"Identifikačné číslo",null,null,null,null,null,null,null,null,"Fakulta"]
[null,null,null,null,null,null,null,null,null,null,null,null,null,null,null,null,null,null,null,null,null,null,null,null,null,null,null,null,null,null,null,null,null,null,null,null,"iac"]
[null,null,null,null,null,null,null,null,null,null,null,null,null,null,null,null,null,null,null,null,null,null,null,null,null,null,null,null,null,null,null,null,"2023",null,null,null,"12"]
[]
[null,null,null,null,null,null,null,null,null,null,null,null,null,null,null,null,null,null,null,null,null,null,null,null,null,null,null,null,null,null,null,null,"Zber údajov podľa stavu: k 31. 12. 2023"]
[]
[]
[]
[null,null,null,null,null,null,null,null,null,null,null,null,null,null,null,null,"Rigorózne skúšky"]
[]
[null,"Vysoká škola"]
[]
[null,"Fakulta"]
[]
[null,"Miesto",null,null,null,null,null,null,null,null,null,null,null,null,null,null,null,null,null,null,null,null,null,null,null,null,null,null,null,null,null,null,null,null,null,null,null,null,null,null,null,null,null,null,null,"PSČ"]
[]
[null,"Ulica"]
[]
[null,null,null,null,null,null,null,null,null,null,"Podpis vedúceho",null,null,null,null,null,null,null,null,null,null,null,null,null,null,null,null,null,null,null,null,null,"Výkaz zostavil"]
[null,"Pečiatka",null,null,null,null,null,null,null,null,"spravodajskej jednotky"]
[]
[null,null,null,null,null,null,null,null,null,null,null,null,null,null,null,null,null,null,null,null,null,null,null,null,null,null,null,null,null,null,null,null,"Telefón",null,null,null,null,null,null,null,null,null,null,null,null,null,null,null,"Klapka"]
[]
[null,null,null,null,null,null,null,null,null,null,null,null,null,null,null,null,null,null,null,null,null,null,null,null,null,null,null,null,null,null,null,null,"E-mail"]
[]
["Odoslané dňa"]
[]
["Polia oranžovej farby musia byť povinne vyplnené (identifikačná časť) alebo označujú nepríspustnú chybu"]
["(údajová časť). Po vyplnení nesmie na formulári byť oranžové pole. Formulár s oranžovým poľom je chybný."]
["Komentár k výkazu (vyplníte povinne, ak na formulári ostalo žlté pole - možná chyba)"]
[]
[]
[]
[]
[]
[]
[]
[]
[]
[]
[null,"Vysvetlivky",null,null,null,null,null,null,"Výkaz vyplnia všetky vysoké školy a fakulty verejné, štátne a súkromné."]
[null,null,null,null,null,null,null,null,"Výkaz sa zostavuje za celý kalendárny rok a uvedú sa v ňom počty"]
[null,null,null,null,null,null,null,null,"absolventov jednotlivých odborov, ktorí od 1. januára do 31. decembra"]
[null,null,null,null,null,null,null,null,"úspešne ukončili štúdium."]
[null,null,null,null,null,null,null,"1/",null,"1.diplom - absolventi bakalárskeho štúdia (I. stupeň) a absolventi, ktorí nemajú"]
[null,null,null,null,null,null,null,null,null,"bakalársky diplom (súvislé štúdium I. a II. stupňa)."]
[null,null,null,null,null,null,null,null,null,"2. diplom - absolventi, ktorí už získali bakalársky diplom v rovnakom alebo príbuznom"]
[null,null,null,null,null,null,null,null,null,"študijnom programe."]

{"sheet":"SV12_01","index":1,"n_rows":7,"n_cols":6,"rows_kept":7,"cut":false,"hidden":false,"merged":[[1,4,4,5],[0,0,0,1],[1,2,1,3],[2,2,2,3],[1,0,2,1]]}
["I. Absolventi - rigorózne skúšky podľa odborov za kalendárny rok",null,"Fakulta",{"$f":"Identif!AV4","v":0}]
["Študijné odbory, programy",null,"Rigorózne",null,"Výpis chýb v príslušnom riadku"]
[null,null,"skúšky"]
["kód","názov","spolu","ženy"]
["a","b",2,3]
[null,"Spolu",{"$f":"SUM(C7:C1500)","v":0},{"$f":"SUM(D7:D1500)","v":0}]
[null,null,null,null,{"$f":"IF(D7>C7,\"Stĺpec 3 je väčši ako stĺpec 2\",\" \")","v":" "},{"$f":"IF(AND(A7<>0,C7=0),\"nulové údaje\",\" \")","v":" "}]

{"sheet":"SV12a_01","index":2,"n_rows":28,"n_cols":6,"rows_kept":28,"cut":false,"hidden":false,"merged":[[2,0,2,1],[3,0,3,1],[2,2,2,3],[3,2,3,3],[4,5,5,5],[5,0,5,1],[4,0,4,1],[24,0,25,3],[27,0,27,1],[6,0,21,0],[26,0,26,1],[22,0,22,1]]}
["III. Veková štruktúra absolventov - rigorózne skúšky"]
[null,null,"Fakulta",{"$f":"Identif!AV4","v":0}]
["Dosiahnutý",null,"Rigorózne",null,null,"Výpis chýb"]
["vek od 1. 1.",null,"skúšky",null,null,"v jednotlivých riadkoch"]
["do 31. 12.",null,"spolu","ženy",null,{"$f":"IF(SUM(C7:D13)>0,\"Vyplnení 17 až 23-roční v žltých poliach - nepravdepodobný údaj - pravda?\",\" \")","v":" "}]
["a",null,1,2]
["Absolventi podľa veku (v rokoch)",17,null,null,null,{"$f":"IF(D7>C7,\"Stĺpec 2 je väčši ako stĺpec 1\",\" \")","v":" "}]
[null,18,null,null,null,{"$f":"IF(D8>C8,\"Stĺpec 2 je väčši ako stĺpec 1\",\" \")","v":" "}]
[null,19,null,null,null," "]
[null,20,null,null,null," "]
[null,21,null,null,null," "]
[null,22,null,null,null," "]
[null,23,null,null,null," "]
[null,24,null,null,null," "]
[null,25,null,null,null," "]
[null,26,null,null,null," "]
[null,27,null,null,null," "]
[null,28,null,null,null," "]
[null,29,null,null,null," "]
[null,"30 - 34",null,null,null," "]
[null,"35 - 39",null,null,null," "]
[null,"40 a viac",null,null,null," "]
["Spolu",null,{"$f":"SUM(C7:C22)","v":0},{"$f":"SUM(D7:D22)","v":0}]
[]
[{"$f":"IF(SUM(C23:D23)<>SUM(C28:D28),\"Súčet podľa veku je rôzny od súčtu podľa odborov v oranžovo vyznačených stĺpcoch\",\" \")","v":" "}]
[]
["Kontrolný nápočet"]
["podľa odborov",null,{"$f":"SV12_01!C6","v":0},{"$f":"SV12_01!D6","v":0}]